bitfinex/quotes_BTCUSD_20250206
["timestamp","ask_amount","ask_price","bid_price","bid_amount"]
[1738872239014,0.156147,96063.0,96062.0,0.114]
[1738872239471,0.156147,96063.0,96062.0,0.113]
[1738872239711,0.156147,96063.0,96062.0,0.114]
[1738872239918,0.208193,96065.0,96062.0,0.114]
[1738872240237,0.0203497,96076.0,96062.0,0.111]
[1738872240411,0.156147,96063.0,96062.0,0.111]
[1738872240609,0.156147,96063.0,96062.0,0.114]
[1738872240816,0.15,96072.0,96062.0,0.21650365]
[1738872241019,0.156145,96064.0,96063.0,0.10250365]
[1738872242201,0.02305181,96072.0,96063.0,0.10450365]
[1738872242403,0.156121,96079.0,96064.0,0.156145]
[1738872242602,0.208153,96083.0,96070.0,0.156135]
[1738872242800,0.534261,96090.0,96077.0,0.156124]
[1738872242801,0.156106,96089.0,96077.0,0.156124]
[1738872243001,0.02266207,96090.0,96078.0,0.10250365]
[1738872243226,0.02087491,96095.0,96078.0,0.10250365]
[1738872243462,0.156119,96081.0,96078.0,0.10250365]
[1738872243690,0.15612,96080.0,96078.0,0.10250365]
[1738872244432,0.005,96079.0,96078.0,0.10250365]
[1738872244653,0.156115,96083.0,96078.0,0.10250365]
[1738872245083,0.20814,96089.0,96078.0,0.10250365]
[1738872245291,0.23160257,96089.0,96078.0,0.10450365]
[1738872245465,0.156118,96081.0,96078.0,0.10450365]
[1738872245651,0.0002245,96096.0,96078.0,0.10250365]
[1738872245855,0.156116,96083.0,96078.0,0.10250365]
[1738872246056,0.157116,96083.0,96078.0,0.10450365]
[1738872246554,0.001,96083.0,96082.0,0.156116]
[1738872246750,0.001,96083.0,96082.0,0.25861965]
[1738872246956,0.001,96083.0,96082.0,0.29100716]
[1738872247481,0.02262248,96091.0,96082.0,0.15044277]
[1738872247684,0.02262248,96091.0,96083.0,0.29100516]
[1738872247855,0.02262248,96091.0,96084.0,0.03238751]
[1738872248072,0.02262248,96091.0,96085.0,0.10250365]
[1738872248246,0.02262248,96091.0,96086.0,0.208146]
[1738872248440,0.02262248,96091.0,96087.0,0.25861065]
[1738872248664,0.02262248,96091.0,96090.0,0.156103]
[1738872248911,0.00413895,96091.0,96090.0,0.25860665]
[1738872249261,0.00013895,96091.0,96090.0,0.27805293]
[1738872249465,0.00013895,96091.0,96090.0,0.12194993]
[1738872249930,0.00013895,96091.0,96090.0,0.27805293]
[1738872250564,0.00313895,96091.0,96090.0,0.27805293]
[1738872250766,0.00013895,96091.0,96090.0,0.27905293]
[1738872251047,0.00013895,96091.0,96090.0,0.31145868]
[1738872251253,0.00013895,96091.0,96090.0,0.16990729]
[1738872251477,0.00013895,96091.0,96090.0,0.17190729]
[1738872251680,0.00013895,96091.0,96090.0,0.17290729]
[1738872251950,0.00013895,96091.0,96090.0,0.16990729]
[1738872252397,0.00013895,96091.0,96090.0,0.33401029]
[1738872252738,0.00013895,96091.0,96090.0,0.17790729]
[1738872253475,0.00013895,96091.0,96090.0,0.33401029]
[1738872253684,0.00013895,96091.0,96090.0,0.17790729]
[1738872254292,0.00013895,96091.0,96090.0,0.33401029]
[1738872258609,0.00013895,96091.0,96090.0,0.14550154]
[1738872258969,0.00013895,96091.0,96090.0,0.17789193]
[1738872259790,0.00013895,96091.0,96090.0,0.17389193]
[1738872260133,0.00013895,96091.0,96090.0,0.33299493]
[1738872260313,0.00013895,96091.0,96090.0,0.29660454]
[1738872260511,0.00013895,96091.0,96090.0,0.28005293]
[1738872260914,0.00013895,96091.0,96090.0,0.28205293]
[1738872261242,0.00013895,96091.0,96090.0,0.34144004]
[1738872261647,0.00013895,96091.0,96090.0,0.35699165]
[1738872262727,0.00013895,96091.0,96090.0,0.35299165]
[1738872263045,0.0002245,96096.0,96095.0,0.179095]
[1738872263252,0.0002245,96096.0,96095.0,0.31398576]
[1738872263885,0.0002245,96096.0,96095.0,0.36448828]
[1738872264644,0.0002245,96096.0,96095.0,0.38503989]
[1738872264836,0.0002245,96096.0,96095.0,0.39403989]
[1738872267344,0.0002245,96096.0,96095.0,0.44013989]
[1738872268052,0.0002245,96096.0,96095.0,0.40908365]
[1738872269743,0.0002245,96096.0,96095.0,0.33998365]
[1738872269913,0.0002245,96096.0,96095.0,0.30759654]
[1738872271253,0.0002245,96096.0,96095.0,0.15150154]
[1738872271475,0.1563175,96096.0,96095.0,0.15150154]
[1738872271882,0.0002245,96096.0,96095.0,0.15150154]
[1738872272211,0.1563175,96096.0,96095.0,0.15150154]
[1738872272433,0.1563175,96096.0,96095.0,0.13094993]
[1738872272732,0.17930635,96096.0,96095.0,0.12194993]
[1738872272918,0.0002245,96096.0,96095.0,0.13094993]
[1738872273484,0.1563175,96096.0,96095.0,0.13094993]
[1738872273801,0.0002245,96096.0,96095.0,0.13094993]
[1738872274785,0.0002245,96096.0,96095.0,0.28704493]
[1738872275546,0.0002245,96096.0,96095.0,0.13094993]
[1738872275795,0.0002245,96096.0,96095.0,0.28704493]
[1738872275969,0.0002245,96096.0,96095.0,0.13094993]
[1738872276173,0.0002245,96096.0,96095.0,0.12694993]
[1738872276378,0.0002245,96096.0,96095.0,0.14250154]
[1738872276554,0.0002245,96096.0,96095.0,0.13750154]
[1738872276954,0.0002245,96096.0,96095.0,0.29359654]
[1738872277183,0.0002245,96096.0,96095.0,0.29759654]
[1738872277416,0.0002245,96096.0,96095.0,0.29749654]
[1738872277758,0.0002245,96096.0,96095.0,0.13984199]
[1738872278104,0.1563175,96096.0,96095.0,0.13984199]
[1738872278308,0.1563175,96096.0,96095.0,0.005]
[1738872278309,0.19276145,96096.0,96095.0,0.005]
[1738872278473,0.2377175,96096.0,96095.0,0.005]
[1738872278696,0.1561,96092.0,96091.0,0.1100669]
[1738872278901,0.1561,96092.0,96091.0,0.21257055]
[1738872280288,0.1561,96092.0,96091.0,0.13255138]
[1738872280713,0.1561,96092.0,96091.0,0.13555138]
[1738872281271,0.17906623,96092.0,96091.0,0.13555138]
[1738872281846,0.17906623,96092.0,96091.0,0.1160669]
[1738872282480,0.32906623,96092.0,96091.0,0.1160669]
[1738872282661,0.40636623,96092.0,96091.0,0.1160669]
[1738872282861,0.55576988,96092.0,96091.0,0.1160669]
[1738872283694,0.45326623,96092.0,96091.0,0.1130669]
[1738872285256,0.45426623,96092.0,96091.0,0.1130669]
[1738872285608,0.45426623,96092.0,96091.0,0.0001069]
[1738872285787,0.45326623,96092.0,96091.0,0.0001069]
[1738872286479,0.30626623,96092.0,96091.0,0.0001069]
[1738872286819,0.14716623,96092.0,96091.0,0.0001069]
[1738872287022,0.02296623,96092.0,96091.0,0.0011069]
[1738872287238,0.02696623,96092.0,96091.0,0.0011069]
[1738872287442,0.004,96092.0,96091.0,0.10261055]
[1738872288432,0.003,96092.0,96091.0,0.10261055]
[1738872288685,0.006,96092.0,96091.0,0.10361055]
[1738872288866,0.1561,96092.0,96091.0,0.10361055]
[1738872289089,0.20031485,96092.0,96091.0,0.10361055]
[1738872289231,0.1591,96092.0,96091.0,0.10361055]
[1738872291604,0.1591,96092.0,96091.0,0.0011069]
[1738872291800,0.16040099,96092.0,96091.0,0.0011069]
[1738872293556,0.003,96092.0,96091.0,0.0011069]
[1738872293717,0.1591,96092.0,96091.0,0.0011069]
[1738872294716,0.003,96092.0,96091.0,0.0011069]
[1738872295096,0.1591,96092.0,96091.0,0.0011069]
[1738872295810,0.003,96092.0,96091.0,0.0011069]
[1738872296018,0.02259728,96096.0,96091.0,0.10361055]
[1738872296215,0.02259728,96096.0,96092.0,0.10250365]
[1738872297538,0.02259728,96096.0,96095.0,0.156095]
[1738872297713,0.02259728,96096.0,96095.0,0.25859865]
[1738872297893,0.0002245,96096.0,96095.0,0.25859865]
[1738872298322,0.0032245,96096.0,96095.0,0.25859865]
[1738872298518,0.0002245,96096.0,96095.0,0.10250365]
[1738872298724,0.0002245,96096.0,96095.0,0.25859865]
[1738872299043,0.0002245,96096.0,96095.0,0.26159865]
[1738872299421,0.0002245,96096.0,96095.0,0.26459865]
[1738872300936,0.0002245,96096.0,96095.0,0.29700855]
[1738872302212,0.0002245,96096.0,96095.0,0.40200855]
[1738872302496,0.0002245,96096.0,96095.0,0.41044855]
[1738872303198,0.0002245,96096.0,96095.0,0.40744855]
[1738872303613,0.0002245,96096.0,96095.0,0.32844855]
[1738872304046,0.0002245,96096.0,96095.0,0.33144855]
[1738872304450,0.0002245,96096.0,96095.0,0.32844855]
[1738872304947,0.0002245,96096.0,96095.0,0.32644855]
[1738872305121,0.0002245,96096.0,96095.0,0.33244855]
[1738872305361,0.0002245,96096.0,96095.0,0.32244855]
[1738872305578,0.0002245,96096.0,96095.0,0.32644855]
[1738872305780,0.0002245,96096.0,96095.0,0.39969677]
[1738872305958,0.0002245,96096.0,96095.0,0.39369677]
[1738872306189,0.0002245,96096.0,96095.0,0.96079677]
[1738872306329,0.0002245,96096.0,96095.0,0.96679677]
[1738872306692,0.00022428,96108.0,96107.0,0.083]
[1738872306893,0.00022428,96108.0,96107.0,0.54698955]
[1738872308029,0.00022428,96108.0,96107.0,0.55198955]
[1738872308369,0.00022428,96108.0,96107.0,0.56098955]
[1738872308570,0.00022428,96108.0,96107.0,0.60117992]
[1738872309954,0.00022428,96108.0,96107.0,0.5917317]
[1738872311156,0.00022428,96108.0,96107.0,0.5817317]
[1738872313818,0.00022428,96108.0,96107.0,0.4841717]
[1738872314540,0.00022428,96108.0,96107.0,0.4747618]
[1738872317235,0.00022428,96108.0,96107.0,0.50704782]
[1738872317838,0.00022428,96108.0,96107.0,0.59354782]
[1738872318242,0.00022408,96130.0,96116.0,0.01]
[1738872318463,0.00068795,96130.0,96129.0,0.28154365]
[1738872319377,0.00068795,96130.0,96129.0,0.39146365]
[1738872320468,0.00068795,96130.0,96129.0,0.39546365]
[1738872320761,0.00068795,96130.0,96129.0,0.40446365]
[1738872320958,0.00068795,96130.0,96129.0,0.39546365]
[1738872321167,0.00068795,96130.0,96129.0,0.40046365]
[1738872321373,0.00068795,96130.0,96129.0,0.40246365]
[1738872321549,0.00068795,96130.0,96129.0,0.39346365]
[1738872321732,0.00068795,96130.0,96129.0,0.40146365]
[1738872322131,0.00068795,96130.0,96129.0,0.39346365]
[1738872322336,0.00068795,96130.0,96129.0,0.40246365]
[1738872322774,0.00068795,96130.0,96129.0,0.40046365]
[1738872323163,0.00068795,96130.0,96129.0,0.22542365]
[1738872323368,0.15672595,96130.0,96129.0,0.22542365]
[1738872323547,0.15672595,96130.0,96129.0,0.22142365]
[1738872323755,0.00068795,96130.0,96129.0,0.21442365]
[1738872323954,0.00068795,96130.0,96129.0,0.11350365]
[1738872324246,0.00068795,96130.0,96129.0,0.10450365]
[1738872324652,0.00068795,96130.0,96129.0,0.10950365]
[1738872324860,0.00068795,96130.0,96129.0,0.26554365]
[1738872325023,0.00068795,96130.0,96129.0,0.10950365]
[1738872326226,0.00068795,96130.0,96129.0,0.26554365]
[1738872326435,0.00068795,96130.0,96129.0,0.28554189]
[1738872326750,0.00068795,96130.0,96129.0,0.28544189]
[1738872327253,0.00068795,96130.0,96129.0,0.27844189]
[1738872327451,0.00068795,96130.0,96129.0,0.10240365]
[1738872327700,0.00068795,96130.0,96129.0,0.11240365]
[1738872327869,0.00068795,96130.0,96129.0,0.26844365]
[1738872328076,0.00068795,96130.0,96129.0,0.25844365]
[1738872328277,0.00068795,96130.0,96129.0,0.26544365]
[1738872328709,0.00068795,96130.0,96129.0,0.10240365]
[1738872329038,0.00068795,96130.0,96129.0,0.26344365]
[1738872329382,0.00068795,96130.0,96129.0,0.31878039]
[1738872329576,0.00068795,96130.0,96129.0,0.32178039]
[1738872329981,0.00068795,96130.0,96129.0,0.31878039]
[1738872330635,0.00068795,96130.0,96129.0,0.31578039]
[1738872330763,0.00068795,96130.0,96129.0,0.31378039]
[1738872330963,0.00068795,96130.0,96129.0,0.32078039]
[1738872331168,0.00068795,96130.0,96129.0,0.32378039]
[1738872331883,0.00068795,96130.0,96129.0,0.31678039]
[1738872332589,0.00068795,96130.0,96129.0,0.32178039]
[1738872332754,0.00068795,96130.0,96129.0,0.34422587]
[1738872333262,0.00068795,96130.0,96129.0,0.49122587]
[1738872333761,0.00068795,96130.0,96129.0,0.49522587]
[1738872334026,0.00068795,96130.0,96129.0,0.82932587]
[1738872334273,0.00022408,96137.0,96136.0,0.306028]
[1738872334516,0.0003631,96137.0,96136.0,0.47230839]
[1738872335017,0.00022408,96151.0,96147.0,0.15601]
[1738872335257,0.155988,96161.0,96148.0,0.13484039]
[1738872335501,0.0002245,96162.0,96149.0,0.03233674]
[1738872335734,0.0002245,96162.0,96150.0,0.25850965]
[1738872335961,0.0002245,96162.0,96159.0,0.15599]
[1738872336176,0.0002245,96162.0,96160.0,0.10250365]
[1738872336828,0.0002245,96162.0,96161.0,0.155988]
[1738872337046,0.0002245,96162.0,96161.0,0.34144884]
[1738872338087,0.0002245,96162.0,96161.0,0.18946084]
[1738872338326,0.0002245,96162.0,96161.0,0.18546084]
[1738872338732,0.1562105,96162.0,96161.0,0.18946084]
[1738872338911,0.0002245,96162.0,96161.0,0.18946084]
[1738872339119,0.1562105,96162.0,96161.0,0.18946084]
[1738872339316,0.0002245,96162.0,96161.0,0.18946084]
[1738872339942,0.0002245,96162.0,96161.0,0.19146084]
[1738872340774,0.1562105,96162.0,96161.0,0.19146084]
[1738872341174,0.1562105,96162.0,96161.0,0.16033824]
[1738872341384,0.1562105,96162.0,96161.0,0.02441988]
[1738872341385,0.47017674,96162.0,96161.0,0.02441988]
[1738872341585,0.46887688,96162.0,96161.0,0.02441988]
[1738872341785,0.4304105,96162.0,96161.0,0.02441988]
[1738872342223,0.2804105,96162.0,96161.0,0.02241988]
[1738872342432,0.2804105,96162.0,96161.0,0.12492353]
[1738872342638,0.2804105,96162.0,96161.0,0.10750365]
[1738872342974,0.1244245,96162.0,96161.0,0.10650365]
[1738872343172,0.1244245,96162.0,96161.0,0.10250365]
[1738872344230,0.1244245,96162.0,96161.0,0.10350365]
[1738872344372,0.1244245,96162.0,96161.0,0.10250365]
[1738872344760,0.1244245,96162.0,96161.0,0.10450365]
[1738872345219,0.1244245,96162.0,96161.0,0.10550365]
[1738872345687,0.1244245,96162.0,96161.0,0.10450365]
[1738872345865,0.1244245,96162.0,96161.0,0.10550365]
[1738872346360,0.0491245,96162.0,96161.0,0.10550365]
[1738872346973,0.2051105,96162.0,96161.0,0.10250365]
[1738872347218,0.0491245,96162.0,96161.0,0.10450365]
[1738872347394,0.0491245,96162.0,96161.0,0.10250365]
[1738872347624,0.0002245,96162.0,96161.0,0.25849165]
[1738872347804,0.0002245,96162.0,96161.0,0.26149165]
[1738872347984,0.0002245,96162.0,96161.0,0.25849165]
[1738872348429,0.0002245,96162.0,96161.0,0.26049165]
[1738872348804,0.0002245,96162.0,96161.0,0.25849165]
[1738872348976,0.0002245,96162.0,96161.0,0.47233684]
[1738872349176,0.0002245,96162.0,96161.0,0.32433684]
[1738872349411,0.0002245,96162.0,96161.0,0.34467935]
[1738872349579,0.0002245,96162.0,96161.0,0.34267935]
[1738872349986,0.0002245,96162.0,96161.0,0.34767935]
[1738872350183,0.0002245,96190.0,96164.0,0.0758]
[1738872350393,0.0002245,96190.0,96183.0,0.43145565]
[1738872350615,0.00036349,96184.0,96183.0,0.46386084]
[1738872351610,0.00036349,96184.0,96183.0,0.39596084]
[1738872351812,0.00036349,96184.0,96183.0,0.40440084]
[1738872352759,0.00036349,96184.0,96183.0,0.55840084]
[1738872352967,0.00036349,96184.0,96183.0,0.61830084]
[1738872353198,0.00036349,96184.0,96183.0,0.64348033]
[1738872353397,0.0002245,96190.0,96188.0,0.155944]
[1738872353626,0.00047057,96189.0,96188.0,0.47385284]
[1738872353943,0.00047057,96189.0,96188.0,1.01185284]
[1738872354839,0.00047057,96189.0,96188.0,1.02185284]
[1738872355145,0.00047057,96189.0,96188.0,1.03085284]
[1738872355272,0.0002245,96190.0,96189.0,0.183]
[1738872355472,0.0002245,96190.0,96189.0,0.30790884]
[1738872356083,0.0002245,96190.0,96189.0,0.31790884]
[1738872356256,0.0002245,96190.0,96189.0,0.30790884]
[1738872356492,0.01104356,96197.0,96196.0,0.338931]
[1738872356693,0.01104356,96197.0,96196.0,0.79793984]
[1738872357739,0.01104356,96197.0,96196.0,0.79693984]
[1738872357944,0.01104356,96197.0,96196.0,0.78793984]
[1738872358263,0.01104356,96197.0,96196.0,0.79693984]
[1738872358853,0.01104356,96197.0,96196.0,0.80193984]
[1738872359590,0.01104356,96197.0,96196.0,0.82280128]
[1738872359847,0.01095159,96197.0,96196.0,0.82280128]
[1738872360382,0.00244869,96197.0,96196.0,0.50870128]
[1738872360790,0.00022428,96227.0,96221.0,0.178891]
[1738872360984,0.00011631,96222.0,96221.0,0.39967465]
[1738872361203,0.00011631,96222.0,96221.0,0.43186984]
[1738872361549,0.00011631,96222.0,96221.0,0.24453884]
[1738872361772,0.00011631,96222.0,96221.0,0.21234365]
[1738872362091,0.20180531,96222.0,96221.0,0.21234365]
[1738872362771,0.20180531,96222.0,96221.0,0.21534365]
[1738872362990,0.20191211,96222.0,96221.0,0.22434365]
[1738872363307,0.43441211,96222.0,96221.0,0.11284]
[1738872363729,0.43441211,96222.0,96221.0,0.12084]
[1738872363927,0.284826,96199.0,96198.0,0.08334071]
[1738872364129,0.284826,96199.0,96198.0,0.18584436]
[1738872364329,0.155946,96187.0,96174.0,0.207954]
[1738872364562,0.155946,96187.0,96171.0,0.10984]
[1738872364563,0.207925,96189.0,96186.0,0.10250365]
[1738872364735,0.155938,96192.0,96187.0,0.10250365]
[1738872364956,0.155937,96193.0,96187.0,0.10250365]
[1738872365153,0.131161,96196.0,96187.0,0.10250365]
[1738872365572,0.15560574,96189.0,96187.0,0.10250365]
[1738872365819,0.131161,96196.0,96187.0,0.10250365]
[1738872366009,0.155943,96189.0,96187.0,0.10450365]
[1738872366551,0.131161,96196.0,96187.0,0.10450365]
[1738872366752,0.155944,96189.0,96187.0,0.10450365]
[1738872367157,0.155944,96189.0,96187.0,0.10250365]
[1738872367357,0.155939,96192.0,96187.0,0.10250365]
[1738872367602,0.155943,96189.0,96187.0,0.10550365]
[1738872368145,0.155943,96189.0,96187.0,0.10250365]
[1738872368351,0.155943,96189.0,96187.0,0.10350365]
[1738872369886,0.155943,96189.0,96187.0,0.10450365]
[1738872370079,0.17398586,96189.0,96187.0,0.10450365]
[1738872370279,0.155944,96188.0,96187.0,0.10450365]
[1738872370487,0.23824352,96188.0,96187.0,0.002]
[1738872370687,0.236944,96188.0,96187.0,0.002]
[1738872371148,0.155957,96180.0,96172.0,0.15597]
[1738872371368,0.155957,96180.0,96173.0,0.25847165]
[1738872371553,0.155957,96180.0,96173.0,0.10250365]
[1738872371986,0.207937,96183.0,96173.0,0.10250365]
[1738872372166,0.081,96188.0,96175.0,0.155964]
[1738872372372,0.15595,96185.0,96177.0,0.155962]
[1738872372584,0.20793,96186.0,96178.0,0.10250365]
[1738872372786,0.20793,96186.0,96171.0,0.10988629]
[1738872372787,0.00129958,96185.0,96171.0,0.10988629]
[1738872373006,0.15597,96172.0,96171.0,0.10988629]
[1738872373662,0.23497,96172.0,96171.0,0.10988629]
[1738872374070,0.43307,96172.0,96171.0,4.629e-05]
[1738872374269,0.43307,96172.0,96171.0,0.00704629]
[1738872374477,0.5071388,96172.0,96171.0,0.00704629]
[1738872374600,0.45166033,96172.0,96171.0,0.00704629]
[1738872374798,0.45166033,96172.0,96171.0,0.00504629]
[1738872375206,0.305986,96162.0,96143.0,0.08334071]
[1738872375409,0.435386,96162.0,96161.0,0.00036327]
[1738872376381,0.43993469,96162.0,96161.0,0.00036327]
[1738872376681,0.435386,96162.0,96161.0,0.00036327]
[1738872376840,0.439386,96162.0,96161.0,0.00036327]
[1738872377232,0.46054069,96162.0,96161.0,0.00036327]
[1738872377679,0.46154069,96162.0,96161.0,0.00036327]
[1738872378038,0.440386,96162.0,96161.0,0.00036327]
[1738872378340,0.289386,96162.0,96161.0,0.00036327]
[1738872378747,0.30803245,96162.0,96161.0,0.00036327]
[1738872378983,0.30403245,96162.0,96161.0,0.00036327]
[1738872379201,0.45803245,96162.0,96161.0,0.00036327]
[1738872379435,0.45803245,96162.0,96161.0,0.25885492]
[1738872379436,0.004,96162.0,96161.0,0.25885492]
[1738872379657,0.0085488,96162.0,96161.0,0.28185492]
[1738872379856,0.005,96162.0,96161.0,0.28185492]
[1738872380106,0.005,96162.0,96161.0,0.46507188]
[1738872380308,0.0001768,96222.0,96161.0,0.46507188]
[1738872380309,0.0768,96208.0,96162.0,0.173]
[1738872380461,0.0768,96208.0,96161.0,0.3277469]
[1738872380462,0.0768,96208.0,96178.0,0.10250365]
[1738872380662,0.155923,96202.0,96189.0,0.207923]
[1738872380917,0.155923,96202.0,96190.0,0.10250365]
[1738872381116,0.155923,96202.0,96196.0,0.155931]
[1738872381313,0.155923,96202.0,96193.0,0.207914]
[1738872381314,0.155923,96202.0,96197.0,0.10250365]
[1738872381550,0.155923,96201.0,96197.0,0.10250365]
[1738872382110,0.13257271,96201.0,96197.0,0.10250365]
[1738872382318,0.155921,96203.0,96197.0,0.10250365]
[1738872382899,0.0768,96208.0,96197.0,0.10550365]
[1738872383096,0.0757,96218.0,96209.0,0.15591]
[1738872383300,0.0757,96218.0,96210.0,0.10250365]
[1738872383301,0.07583894,96218.0,96210.0,0.10250365]
[1738872383500,0.07583894,96218.0,96210.0,0.31038165]
[1738872383501,0.00013894,96218.0,96210.0,0.31038165]
[1738872383720,0.00013894,96218.0,96215.0,0.363765]
[1738872383920,0.00013894,96218.0,96216.0,0.10250365]
[1738872384107,0.00013894,96218.0,96217.0,0.155897]
[1738872384320,0.00013894,96218.0,96217.0,0.25840065]
[1738872385522,0.00013894,96218.0,96217.0,0.28140065]
[1738872385722,0.00413894,96218.0,96217.0,0.28140065]
[1738872386053,0.00013894,96218.0,96217.0,0.28140065]
[1738872386261,0.00013894,96218.0,96217.0,0.28440065]
[1738872386581,0.00013894,96218.0,96217.0,0.28140065]
[1738872386800,0.00013894,96218.0,96217.0,0.28440065]
[1738872387136,0.00024584,96218.0,96217.0,0.29240065]
[1738872387330,0.00024584,96218.0,96217.0,0.28940065]
[1738872387669,0.00024584,96218.0,96217.0,0.29240065]
[1738872388235,0.155866,96237.0,96227.0,0.155881]
[1738872388374,0.00046304,96229.0,96228.0,0.25838265]
[1738872389418,0.00046304,96229.0,96228.0,0.28138265]
[1738872389627,0.00046304,96229.0,96228.0,0.43138265]
[1738872389875,0.00046304,96229.0,96228.0,0.28138265]
[1738872390077,0.00046304,96229.0,96228.0,0.43438265]
[1738872390479,0.00046304,96229.0,96228.0,0.43138265]
[1738872390978,0.00046304,96229.0,96228.0,0.43538265]
[1738872391172,0.00037109,96229.0,96228.0,0.43538265]
[1738872391734,0.00037109,96229.0,96228.0,0.43838265]
[1738872391909,0.00037109,96229.0,96228.0,0.43438265]
[1738872392119,0.00037109,96229.0,96228.0,0.43138265]
[1738872392316,0.00037109,96229.0,96228.0,0.44138265]
[1738872392544,0.00037109,96229.0,96228.0,0.43438265]
[1738872392769,0.00037109,96229.0,96228.0,0.43138265]
[1738872393044,0.00037109,96229.0,96228.0,0.44138265]
[1738872393382,0.00037109,96229.0,96228.0,0.44038265]
[1738872393729,0.00037109,96229.0,96228.0,0.43138265]
[1738872393919,0.00037109,96229.0,96228.0,0.43438265]
[1738872394258,0.00037109,96229.0,96228.0,0.10550365]
[1738872394892,0.00037109,96229.0,96228.0,0.28438265]
[1738872395052,0.00037109,96229.0,96228.0,0.28138265]
[1738872395275,0.00037109,96229.0,96228.0,0.43438265]
[1738872395684,0.00037109,96229.0,96228.0,0.44138265]
[1738872396105,0.00037109,96229.0,96228.0,0.43138265]
[1738872396306,0.00037109,96229.0,96228.0,0.43538265]
[1738872396929,0.00037109,96229.0,96228.0,0.43938265]
[1738872397131,0.00037109,96229.0,96228.0,0.43138265]
[1738872397534,0.00037109,96229.0,96228.0,0.44038265]
[1738872398146,0.00037109,96229.0,96228.0,0.44438265]
[1738872399048,0.00037109,96229.0,96228.0,0.44460693]
[1738872399253,0.00047789,96229.0,96228.0,0.44460693]
[1738872402747,0.00047789,96229.0,96228.0,0.11572793]
[1738872402971,0.00047789,96229.0,96228.0,0.27160693]
[1738872403174,0.00047789,96229.0,96228.0,0.11572793]
[1738872404192,0.15635589,96229.0,96228.0,0.11572793]
[1738872404399,0.15635589,96229.0,96228.0,0.01322428]
[1738872405054,0.15635589,96229.0,96228.0,0.00922428]
[1738872405206,0.15635589,96229.0,96228.0,0.00022428]
[1738872405450,0.15635589,96229.0,96228.0,0.00322428]
[1738872405650,0.15635589,96229.0,96228.0,0.00922428]
[1738872405846,0.00047789,96229.0,96228.0,0.00622428]
[1738872406232,0.00047789,96229.0,96228.0,0.26760693]
[1738872406468,0.00047789,96229.0,96228.0,0.11172793]
[1738872406694,0.15635589,96229.0,96228.0,0.11172793]
[1738872407044,0.15635589,96229.0,96228.0,0.00922428]
[1738872407246,0.17395257,96229.0,96228.0,0.00922428]
[1738872407449,0.15635589,96229.0,96228.0,0.00922428]
[1738872407881,0.00047789,96229.0,96228.0,0.00922428]
[1738872408083,0.00047789,96229.0,96228.0,0.10872793]
[1738872408317,0.00047789,96229.0,96228.0,0.26560693]
[1738872408526,0.00047789,96229.0,96228.0,0.25960693]
[1738872408733,0.00047789,96229.0,96228.0,0.10372793]
[1738872408944,0.00047789,96229.0,96228.0,0.25860693]
[1738872409137,0.00047789,96229.0,96228.0,0.10372793]
[1738872409617,0.00047789,96229.0,96228.0,0.10272793]
[1738872409794,0.00047789,96229.0,96228.0,0.10572793]
[1738872410954,0.00047789,96229.0,96228.0,0.26360693]
[1738872411486,0.00047789,96229.0,96228.0,0.25860693]
[1738872411702,0.00047789,96229.0,96228.0,0.26160693]
[1738872411910,0.00047789,96229.0,96228.0,0.28460693]
[1738872412112,0.00047789,96229.0,96228.0,0.28660693]
[1738872412462,0.00047789,96229.0,96228.0,0.28960693]
[1738872412765,0.00047789,96229.0,96228.0,0.28160693]
[1738872412942,0.00047789,96229.0,96228.0,0.28260693]
[1738872413262,0.00047789,96229.0,96228.0,0.33494279]
[1738872413462,0.00047789,96229.0,96228.0,0.33294279]
[1738872413608,0.00047789,96229.0,96228.0,0.3006655]
[1738872414034,0.00047789,96229.0,96228.0,0.33194345]
[1738872414439,0.00047789,96229.0,96228.0,0.33494345]
[1738872414815,0.00047789,96229.0,96228.0,0.33794345]
[1738872415020,0.00047789,96229.0,96228.0,0.33194345]
[1738872415216,0.00047789,96229.0,96228.0,0.33494345]
[1738872415427,0.00047789,96229.0,96228.0,0.34094345]
[1738872415938,0.00047789,96229.0,96228.0,0.16206445]
[1738872416789,0.00047789,96229.0,96228.0,0.15606445]
[1738872417173,0.00047789,96229.0,96228.0,0.15306445]
[1738872417585,0.00047789,96229.0,96228.0,0.30894345]
[1738872417799,0.00047789,96229.0,96228.0,0.31094345]
[1738872418006,0.00047789,96229.0,96228.0,0.31294345]
[1738872418387,0.00047789,96229.0,96228.0,0.30894345]
[1738872418817,0.00047789,96229.0,96228.0,0.31394345]
[1738872419025,0.00047789,96229.0,96228.0,0.31094345]
[1738872419462,0.00047789,96229.0,96228.0,0.31594345]
[1738872419659,0.00047789,96229.0,96228.0,0.31094345]
[1738872420042,0.00047789,96229.0,96228.0,0.31594345]
[1738872420241,0.00047789,96229.0,96228.0,0.33894345]
[1738872420801,0.00047789,96229.0,96228.0,0.33694345]
[1738872421170,0.00047789,96229.0,96228.0,0.33794345]
[1738872421360,0.00047789,96229.0,96228.0,0.33294345]
[1738872421570,0.00047789,96229.0,96228.0,0.33594345]
[1738872421781,0.00047789,96229.0,96228.0,0.33194345]
[1738872422180,0.00047789,96229.0,96228.0,0.48794345]
[1738872422384,0.00047789,96229.0,96228.0,0.61404345]
[1738872422581,0.00047789,96229.0,96228.0,0.61104345]
[1738872422788,0.00047789,96229.0,96228.0,0.61404345]
[1738872423157,0.00047789,96229.0,96228.0,0.61104345]
[1738872423631,0.00047789,96229.0,96228.0,0.48194345]
[1738872424032,0.00047789,96229.0,96228.0,0.48294345]
[1738872424528,0.00047789,96229.0,96228.0,0.48194345]
[1738872424732,0.00047789,96229.0,96228.0,0.59574345]
[1738872424889,0.00047789,96229.0,96228.0,0.60174345]
[1738872425092,0.00047789,96229.0,96228.0,0.59574345]
[1738872425484,0.00047789,96229.0,96228.0,0.60474345]
[1738872427620,0.0829,96276.0,96266.0,0.155818]
[1738872427821,0.00033888,96269.0,96267.0,0.10250365]
[1738872428026,0.00033888,96269.0,96268.0,0.03239514]
[1738872428265,0.00033888,96269.0,96268.0,0.13489879]
[1738872428467,0.15615188,96269.0,96268.0,0.10250365]
[1738872429248,0.15615188,96269.0,96268.0,0.10350365]
[1738872429486,0.15615188,96269.0,96268.0,0.10250365]
[1738872430450,0.155816,96267.0,96266.0,0.001]
[1738872430663,0.20905554,96267.0,96230.0,0.08334071]
[1738872431032,0.234452,96245.0,96244.0,0.13488345]
[1738872431143,0.279552,96245.0,96244.0,0.10250365]
[1738872432380,0.27946007,96245.0,96244.0,0.10250365]
[1738872432634,0.27946007,96245.0,96244.0,0.10650365]
[1738872433465,0.27946007,96245.0,96244.0,0.006]
[1738872434045,0.45247337,96245.0,96244.0,0.006]
[1738872435331,0.46937823,96245.0,96244.0,0.006]
[1738872436482,0.31937823,96245.0,96244.0,0.006]
[1738872436658,0.19567823,96245.0,96244.0,0.006]